bitfinex-derivatives/quotes_SOLF0:USTF0_20241016
["timestamp","ask_amount","ask_price","bid_price","bid_amount"]
[1729091764288,3.2207,155.27,155.24,3.2211]
[1729091764489,18.57,155.3,155.23,1.4054]
[1729091764880,3.2206,155.27,155.24,3.2211]
[1729091765079,18.57,155.3,155.24,3.2211]
[1729091765279,18.57,155.3,155.23,1.4054]
[1729091765489,3.2204,155.28,155.25,3.221]
[1729091765689,3.2204,155.28,155.23,1.4054]
[1729091766079,3.2204,155.28,155.24,3.2211]
[1729091767493,3.2207,155.27,155.24,3.2211]
[1729091768085,3.2205,155.28,155.25,3.221]
[1729091768285,18.57,155.32,155.23,1.4054]
[1729091768688,3.2202,155.3,155.26,3.2207]
[1729091768885,3.2202,155.3,155.26,11.70863076]
[1729091769193,18.57,155.32,155.26,11.70863076]
[1729091769490,3.2204,155.29,155.26,11.70863076]
[1729091769697,18.57,155.3,155.26,3.14793076]
[1729091769897,18.57,155.3,155.25,5.34]
[1729091770289,18.57,155.3,155.25,8.5609]
[1729091770691,3.2205,155.28,155.25,8.5609]
[1729091771389,18.57,155.32,155.25,8.5609]
[1729091771390,18.57,155.32,155.26,3.2208]
[1729091771590,3.2204,155.29,155.26,6.37207094]
[1729091771990,18.57,155.32,155.26,3.15127094]
[1729091772295,18.57,155.34,155.26,18.57]
[1729091772490,18.57,155.34,155.26,21.74574933]
[1729091772691,18.57,155.34,155.26,23.12154933]
[1729091772898,3.2196,155.32,155.26,23.12154933]
[1729091773301,3.2191,155.35,155.32,3.2195]
[1729091773599,19.9941,155.41,155.3,5.34]
[1729091773796,3.2187,155.37,155.34,3.219]
[1729091773999,19.9941,155.41,155.35,5.34]
[1729091774199,19.9941,155.41,155.36,3.30061491]
[1729091774398,19.9941,155.41,155.35,5.34]
[1729091774795,19.9941,155.41,155.35,8.51952688]
[1729091775003,19.9941,155.41,155.35,11.73842688]
[1729091775802,3.2185,155.38,155.35,11.73842688]
[1729091776195,19.9941,155.41,155.35,11.73842688]
[1729091776500,3.2186,155.37,155.35,11.73842688]
[1729091776889,3.2186,155.37,155.35,8.51952688]
[1729091777201,19.9941,155.41,155.35,8.51952688]
[1729091777500,19.9941,155.41,155.35,11.73842688]
[1729091777700,19.9941,155.41,155.35,8.51952688]
[1729091778806,1.4241,155.41,155.35,8.51952688]
[1729091779003,18.57,155.43,155.37,3.2185]
[1729091779200,190.0169558,157.41,155.35,8.51952688]
[1729091779201,18.57,155.45,155.36,18.57]
[1729091779494,18.57,155.45,155.36,21.2706]
[1729091779900,3.2175,155.42,155.39,3.218]
[1729091780096,3.2175,155.42,155.4,5.34]
[1729091780402,18.57,155.47,155.41,3.2177]
[1729091780403,3.2172,155.44,155.41,3.2177]
[1729091781302,3.2173,155.43,155.41,3.2177]
[1729091781602,18.57,155.45,155.4,5.34]
[1729091781795,3.2183,155.39,155.36,2.7006]
[1729091782001,18.57,155.43,155.37,5.34]
[1729091782193,18.57,155.41,155.37,5.34]
[1729091782398,18.57,155.41,155.35,3.2189]
[1729091782603,18.57,155.41,155.34,1.3359]
[1729091782799,18.57,155.39,155.35,5.34]
[1729091783001,18.57,155.39,155.35,8.47906249]
[1729091783708,3.2188,155.36,155.35,8.47906249]
[1729091784307,18.57,155.43,155.35,8.47906249]
[1729091784602,18.57,155.45,155.36,18.57]
[1729091784908,3.217,155.45,155.4,3.2178]
[1729091785200,18.57,155.47,155.41,5.34]
[1729091785600,3.2175,155.42,155.41,5.34]
[1729091789099,2.7587,155.49,155.41,5.34]
[1729091789300,3.2174,155.43,155.41,8.5577]
[1729091789505,2.7587,155.49,155.41,8.5577]
[1729091789700,3.2172,155.44,155.41,8.5577]
[1729091790307,3.2166,155.47,155.42,3.2173]
[1729091790502,3.2166,155.47,155.41,5.34]
[1729091790503,1.4295,155.49,155.41,5.34]
[1729091790711,6.431,155.52,155.42,1.4482]
[1729091790902,3.2172,155.44,155.42,1.4482]
[1729091791500,3.2172,155.44,155.43,5.34]
[1729091791703,6.431,155.52,155.42,1.4482]
[1729091791894,31.0946,155.53,155.42,1.4482]
[1729091791895,1.4346,155.53,155.43,2.1227]
[1729091792502,3.2159,155.5,155.47,3.2164]
[1729091792804,3.2159,155.5,155.47,11.80225681]
[1729091793007,3.2159,155.5,155.47,8.5564]
[1729091793214,3.2161,155.49,155.47,8.5564]
[1729091793595,3.2161,155.49,155.47,11.71443531]
[1729091794410,1.4346,155.53,155.47,8.49803531]
[1729091795222,29.66,155.52,155.47,3.15803531]
[1729091795397,29.66,155.52,155.46,3.191699]
[1729091795602,29.66,155.52,155.42,6.7882]
[1729091797805,3.2168,155.46,155.43,3.2172]
[1729091799711,29.66,155.52,155.42,1.4482]
[1729091799712,3.2172,155.44,155.42,1.4482]
[1729091799912,6.7746,155.53,155.38,2.7574]
[1729091800113,6.7746,155.53,155.37,29.66]
[1729091800114,29.66,155.47,155.39,5.34]
[1729091800710,5.34,155.52,155.4,29.66]
[1729091801006,5.34,155.52,155.4,31.02]
[1729091801211,5.34,155.52,155.4,32.3594]
[1729091802412,3.2168,155.46,155.43,3.2173]
[1729091802713,5.34,155.52,155.43,5.34]
[1729091802903,29.66,155.5,155.44,3.24937592]
[1729091803100,3.2173,155.43,155.42,5.34]
[1729091803314,3.2173,155.43,155.41,5.34]
[1729091803612,29.66,155.5,155.41,5.34]
[1729091803810,29.66,155.48,155.41,5.34]
[1729091804208,3.2175,155.42,155.41,5.34]
[1729091807010,31.0119,155.48,155.38,3.2183]
[1729091807218,31.0119,155.48,155.39,5.34]
[1729091807613,3.2179,155.4,155.39,5.34]
[1729091808213,18.54,155.46,155.37,1.393]
[1729091808511,1.4383,155.45,155.37,1.393]
[1729091808715,1.4383,155.45,155.38,5.34]
[1729091809020,3.2181,155.39,155.38,5.34]
[1729091810917,1.4383,155.45,155.37,1.393]
[1729091811113,3.2184,155.38,155.37,6.733]
[1729091811311,18.54,155.44,155.37,6.733]
[1729091811813,3.2175,155.42,155.37,6.733]
[1729091812008,18.54,155.44,155.37,6.733]
[1729091812407,3.2182,155.39,155.37,6.733]
[1729091815019,3.2178,155.41,155.38,21.7582]
[1729091815215,3.2178,155.41,155.38,18.54]
[1729091815517,3.2174,155.43,155.4,3.2179]
[1729091815717,3.2174,155.43,155.41,5.34]
[1729091816111,3.2175,155.42,155.41,5.34]
[1729091819024,3.2181,155.39,155.37,4.6115]
[1729091819222,18.54,155.44,155.38,5.32]
[1729091819723,3.2181,155.39,155.38,5.32]
[1729091820416,24.9738,155.46,155.38,5.32]
[1729091820616,3.218,155.4,155.38,8.5383]
[1729091820818,3.218,155.4,155.37,1.393]
[1729091820819,18.54,155.44,155.37,1.393]
[1729091821022,18.54,155.44,155.37,6.713]
[1729091821320,3.2184,155.38,155.37,6.713]
[1729091821723,1.3335,155.43,155.36,8.50122564]
[1729091822025,18.54,155.42,155.34,5.32]
[1729091822328,19.9158,155.42,155.34,8.54274469]
[1729091822719,3.2187,155.37,155.34,11.76184469]
[1729091823118,1.3758,155.42,155.34,27.08274469]
[1729091823318,3.2183,155.39,155.36,3.2186]
[1729091823731,1.3758,155.42,155.36,3.2186]
[1729091824617,3.2184,155.38,155.36,3.2186]
[1729091825728,1.3758,155.42,155.34,3.22274469]
[1729091825729,3.2189,155.36,155.34,3.22274469]
[1729091826025,19.9158,155.42,155.34,5.32]
[1729091826721,19.9158,155.42,155.32,23.13388038]
[1729091826924,19.9158,155.42,155.33,5.32]
[1729091827916,3.2187,155.37,155.33,5.32]
[1729091828333,3.2189,155.36,155.33,8.5393]
[1729091828632,3.2189,155.36,155.33,5.32]
[1729091829433,3.2189,155.36,155.34,3.2192]
[1729091829631,3.2189,155.36,155.33,5.32]
[1729091829831,3.2191,155.35,155.33,5.32]
[1729091830027,18.54,155.41,155.33,5.32]
[1729091830227,24.9756,155.41,155.33,5.32]
[1729091830423,3.2191,155.35,155.33,5.32]
[1729091831831,3.2191,155.35,155.33,8.5394]
[1729091832237,3.2189,155.36,155.33,8.5394]
[1729091832639,24.9756,155.41,155.33,8.5394]
[1729091833139,24.9756,155.41,155.33,5.32]
[1729091834539,3.2191,155.35,155.33,8.5394]
[1729091835035,1.3758,155.42,155.33,5.32]
[1729091835236,1.3335,155.43,155.36,18.54]
[1729091835440,1.3335,155.43,155.38,18.54]
[1729091835639,3.2176,155.42,155.4,3.2179]
[1729091835939,3.2176,155.42,155.4,6.43869195]
[1729091836240,1.4114,155.46,155.4,3.2179]
[1729091836627,1.4114,155.46,155.4,6.39620299]
[1729091837028,3.2175,155.43,155.4,6.39620299]
[1729091840053,3.2175,155.42,155.4,6.39620299]
[1729091841039,5.32,155.47,155.4,21.71830299]
[1729091841241,18.54,155.49,155.41,5.32]
[1729091841736,3.2172,155.44,155.41,8.5376]
[1729091842133,19.8527,155.5,155.41,5.32]
[1729091842533,1.3127,155.5,155.44,18.54]
[1729091842846,1.3912,155.52,155.45,5.32]
[1729091843142,5.32,155.56,155.46,18.54]
[1729091843341,3.2158,155.51,155.48,3.2162]
[1729091844132,3.2158,155.51,155.48,6.4302326]
[1729091845848,19.9146,155.57,155.49,5.32]
[1729091846547,19.9146,155.57,155.49,8.53274609]
[1729091846844,5.32,155.62,155.52,18.54]
[1729091847043,1.426,155.62,155.53,5.32]
[1729091847251,3.2142,155.59,155.56,3.2145]
[1729091847944,1.426,155.62,155.57,3.22135907]
[1729091848143,100.26040551,155.69,155.54,19.9602]
[1729091848339,1.426,155.73,155.64,21.753]
[1729091848539,1.426,155.73,155.64,21.77775684]
[1729091848947,18.54,155.72,155.64,21.77775684]
[1729091849135,18.54,155.72,155.64,27.15775684]
[1729091849951,18.54,155.72,155.64,8.61775684]
[1729091850443,3.2124,155.67,155.64,3.23775684]
[1729091850650,23.92,155.72,155.59,18.54]
[1729091850651,18.54,155.7,155.59,18.54]
[1729091850847,5.38,155.72,155.59,18.54]
[1729091850848,18.54,155.68,155.6,5.38]
[1729091851043,3.2131,155.64,155.6,5.38]
[1729091851653,3.2131,155.64,155.59,21.7539]
[1729091851851,3.2131,155.64,155.6,5.38]
[1729091852343,3.2132,155.63,155.6,5.38]
[1729091852744,18.54,155.67,155.57,18.54]
[1729091852957,3.2136,155.61,155.58,5.38]
[1729091853145,18.54,155.62,155.54,5.97023889]
[1729091853348,18.54,155.62,155.55,5.38]
[1729091853349,18.54,155.6,155.55,5.38]
[1729091853543,18.54,155.6,155.54,4.64573889]
[1729091853544,18.54,155.6,155.54,3.22553889]
[1729091853745,18.54,155.6,155.52,5.38]
[1729091853944,3.2143,155.58,155.52,8.5954]
[1729091854143,18.54,155.6,155.52,8.65012641]
[1729091854757,18.54,155.62,155.53,3.2151]
[1729091856049,3.2139,155.6,155.53,3.2151]
[1729091856254,18.54,155.62,155.52,27.19012641]
[1729091856550,23.92,155.64,155.55,21.7546]
[1729091856754,23.92,155.64,155.56,5.38]
[1729091857448,3.214,155.6,155.56,5.38]
[1729091857954,23.92,155.64,155.56,5.38]
[1729091859149,18.54,155.62,155.56,5.38]
[1729091859656,3.2138,155.61,155.56,5.38]
[1729091859955,18.54,155.62,155.52,21.81012641]
[1729091859956,18.54,155.58,155.52,3.27012641]
[1729091860258,18.54,155.58,155.51,5.38]
[1729091860455,18.54,155.58,155.51,6.35812235]
[1729091860847,18.54,155.58,155.51,3.14262235]
[1729091861047,3.2152,155.54,155.5,8.5957]
[1729091861663,3.2152,155.54,155.51,3.2156]
[1729091861849,3.2149,155.55,155.51,3.2156]
[1729091862150,1.3976,155.59,155.5,38.20123256]
[1729091862751,1.3976,155.59,155.53,3.2151]
[1729091863160,3.2146,155.57,155.53,3.2151]
[1729091864158,5.38,155.62,155.52,29.65]
[1729091864855,5.38,155.62,155.55,3.2148]
[1729091865556,3.2139,155.6,155.54,5.38]
[1729091865761,6.7634,155.65,155.55,29.65]
[1729091865951,6.7634,155.65,155.56,1.4185]
[1729091866147,1.3834,155.65,155.56,1.4185]
[1729091866546,1.4269,155.66,155.64,3.213]
[1729091866747,5.38,155.7,155.63,3.21091131]
[1729091867044,3.2139,155.6,155.57,8.5943]
[1729091867249,29.65,155.66,155.56,1.4185]
[1729091867452,29.65,155.64,155.54,5.38]
[1729091867660,3.2147,155.56,155.53,8.5951]
[1729091867850,3.2147,155.56,155.53,3.2151]
[1729091868043,5.38,155.61,155.52,5.38]
[1729091868247,5.38,155.61,155.52,35.03]
[1729091868555,5.38,155.64,155.52,35.03]
[1729091868953,3.2141,155.59,155.56,3.2145]
[1729091869456,3.2138,155.6,155.57,3.2143]
[1729091870947,3.2142,155.59,155.55,3.2147]
[1729091871148,5.38,155.64,155.55,3.2147]
[1729091871550,3.2144,155.57,155.55,3.2147]
[1729091871748,3.2144,155.57,155.52,35.03]
[1729091871749,5.38,155.64,155.52,8.5953]
[1729091871949,3.2142,155.59,155.52,5.38]
[1729091872144,5.38,155.6,155.52,5.38]
[1729091872349,5.38,155.6,155.54,3.215]
[1729091872553,3.2145,155.57,155.54,3.215]
[1729091872748,3.2145,155.57,155.52,5.38]
[1729091872959,3.2145,155.57,155.53,3.2151]
[1729091873150,3.2145,155.57,155.52,5.38]
[1729091873350,3.2142,155.58,155.52,5.38]
[1729091873560,3.2142,155.58,155.55,3.2147]
[1729091874854,5.38,155.61,155.55,3.2147]
[1729091875049,3.2144,155.57,155.55,3.2147]
[1729091876256,3.2144,155.57,155.52,5.38]
[1729091876460,5.38,155.61,155.54,3.215]
[1729091876663,3.2147,155.56,155.52,5.38]
[1729091876959,3.2147,155.56,155.54,3.215]
[1729091877358,3.2149,155.55,155.52,5.38]
[1729091877553,1.3582,155.6,155.52,5.38]
[1729091877856,1.3582,155.6,155.51,6.7291]
[1729091878057,1.3582,155.6,155.53,3.2151]
[1729091878564,3.2148,155.56,155.53,3.2151]
[1729091878764,1.3582,155.6,155.52,3.2153]
[1729091878962,1.3582,155.6,155.51,1.3491]
[1729091879265,3.2152,155.54,155.51,4.5646]
[1729091880152,1.3582,155.6,155.51,1.3491]
[1729091880354,5.38,155.61,155.51,1.3491]
[1729091880564,5.38,155.61,155.52,29.65]
[1729091880758,3.2142,155.58,155.54,3.2149]
[1729091880962,3.2142,155.58,155.52,29.65]
[1729091881665,3.2146,155.57,155.52,29.65]
[1729091882159,3.2146,155.57,155.54,3.2149]
[1729091883163,29.65,155.56,155.4,72.19448592]
[1729091883462,1.3731,155.55,155.45,1.4265]
[1729091883655,3.2162,155.49,155.45,10.0832]
[1729091883854,3.2162,155.49,155.45,6.8665]
[1729091884052,5.44,155.53,155.45,6.8665]
[1729091884252,5.44,155.53,155.47,3.2164]
[1729091884467,5.44,155.53,155.48,3.28684189]
[1729091885266,3.2159,155.51,155.48,3.28684189]
[1729091885463,5.44,155.53,155.46,3.2165]
[1729091885762,3.216,155.5,155.45,6.8665]
[1729091885963,5.44,155.53,155.46,3.2166]
[1729091886165,5.44,155.53,155.47,3.14359598]
[1729091886371,3.2156,155.52,155.47,3.14359598]
[1729091886559,5.44,155.53,155.45,6.8665]
[1729091887068,3.2158,155.51,155.45,6.8665]
[1729091887270,5.44,155.53,155.45,6.8665]
[1729091887570,3.2159,155.5,155.45,6.8665]
[1729091887780,3.2159,155.5,155.47,3.2164]
[1729091887970,3.2159,155.5,155.48,3.15453135]
[1729091889964,5.44,155.53,155.48,3.15453135]
[1729091890168,18.52,155.52,155.43,5.44]
[1729091890475,18.52,155.5,155.42,5.44]
[1729091890668,3.217,155.45,155.42,3.2175]
[1729091890864,5.44,155.49,155.41,8.164]
[1729091891066,18.52,155.52,155.42,18.52]
[1729091891276,5.44,155.53,155.44,18.52]
[1729091891665,18.52,155.52,155.42,19.8425]
[1729091892372,18.52,155.5,155.41,8.164]
[1729091892574,1.3731,155.55,155.41,1.3125]
[1729091892575,18.52,155.48,155.41,1.3125]
[1729091892872,6.7671,155.47,155.39,3.218]
[1729091893262,6.7671,155.47,155.38,21.72881959]
[1729091893460,3.2174,155.43,155.4,3.2179]
[1729091893673,18.52,155.44,155.35,2.7363]
[1729091893877,6.7671,155.47,155.35,6.00220834]
[1729091893878,18.52,155.42,155.35,6.00220834]
[1729091894078,18.52,155.42,155.34,6.7507]
[1729091894079,18.52,155.4,155.34,5.44]
[1729091894267,5.44,155.42,155.34,8.70204869]
[1729091894462,5.44,155.41,155.34,8.70204869]
[1729091894675,3.2183,155.39,155.36,3.2187]
[1729091894872,18.52,155.42,155.34,8.70204869]
[1729091895373,18.52,155.4,155.34,3.26204869]
[1729091895674,3.2187,155.37,155.33,3.2192]
[1729091895876,5.44,155.39,155.34,3.25104924]
[1729091896073,5.44,155.4,155.34,3.25104924]
[1729091896280,3.2187,155.37,155.34,3.25104924]
[1729091896572,3.2187,155.37,155.33,3.2192]
[1729091896777,5.44,155.4,155.33,3.22562024]
[1729091897070,5.44,155.41,155.32,6.7838]
[1729091897273,3.2185,155.38,155.35,3.2188]
[1729091897467,5.44,155.41,155.35,3.29836649]
[1729091897682,5.44,155.41,155.32,6.7838]
[1729091898071,5.44,155.41,155.32,9.93281136]
[1729091898372,5.44,155.41,155.32,4.49281136]
[1729091898574,1.3271,155.47,155.32,4.49281136]
[1729091898776,29.68,155.44,155.32,11.32191136]
[1729091899277,3.2187,155.37,155.34,3.2191]
[1729091899572,5.44,155.41,155.32,11.32191136]
[1729091899779,3.2189,155.36,155.33,3.2194]
[1729091900676,3.219,155.35,155.32,7.71231136]
[1729091901267,3.2191,155.35,155.32,4.49281136]
[1729091901576,2.6816,155.4,155.32,4.49281136]
[1729091902179,3.2184,155.38,155.34,3.2191]
[1729091902379,3.2184,155.38,155.32,4.49281136]
[1729091902579,4.5519,155.4,155.36,3.2187]
[1729091903080,1.3339,155.4,155.32,4.49281136]
[1729091903675,3.2183,155.39,155.35,3.2188]
[1729091904480,3.2183,155.39,155.36,3.2187]
[1729091904780,3.218,155.4,155.32,34.17281136]
[1729091905177,1.3919,155.46,155.34,29.68]
[1729091905380,3.217,155.45,155.37,29.68]
[1729091905779,1.3919,155.46,155.38,1.4294]
[1729091905970,3.2171,155.44,155.39,5.44]
[1729091906173,3.2171,155.44,155.41,3.2176]
[1729091906373,1.3919,155.46,155.41,3.16586753]
[1729091906673,1.3919,155.46,155.39,6.8799]
[1729091906875,1.3919,155.46,155.41,3.2176]
[1729091907180,1.3919,155.46,155.39,1.4399]
[1729091908277,3.2178,155.41,155.39,1.4399]
[1729091909488,3.2179,155.4,155.39,1.4399]
[1729091909689,5.44,155.44,155.39,1.4399]
[1729091910095,3.2179,155.4,155.37,3.2185]
[1729091910390,35.12,155.44,155.36,5.44]
[1729091910893,3.2183,155.39,155.33,8.2644]
[1729091911592,35.12,155.44,155.33,8.2644]
[1729091911784,3.218,155.4,155.37,3.2185]
[1729091912381,35.12,155.44,155.37,3.2185]
[1729091912585,3.2182,155.39,155.37,3.2185]
[1729091912792,3.2182,155.39,155.36,3.2186]
[1729091913096,3.2182,155.39,155.33,4.1698]
[1729091913289,29.68,155.42,155.33,9.6298]
[1729091913997,3.2182,155.39,155.36,3.2188]
[1729091914496,3.2182,155.39,155.33,9.6298]
[1729091915189,3.218,155.4,155.35,3.2188]
[1729091915393,3.218,155.4,155.33,9.6298]
[1729091915589,29.68,155.42,155.33,9.6298]
[1729091915797,5.44,155.44,155.33,9.6298]
[1729091915798,18.55,155.41,155.33,9.6298]
[1729091916406,3.2182,155.39,155.36,3.2187]
[1729091917493,3.2182,155.39,155.37,3.2185]
[1729091917711,24.01,155.43,155.33,28.1798]
[1729091919600,3.2178,155.41,155.38,3.2183]
[1729091919906,18.55,155.44,155.37,5.46]
[1729091920206,3.218,155.4,155.37,3.2185]
[1729091922006,18.55,155.39,155.33,2.7404]
[1729091922211,18.55,155.39,155.33,1.375]
[1729091922599,18.55,155.39,155.34,3.2192]
[1729091923108,3.2187,155.37,155.35,3.2189]
[1729091925106,3.2185,155.38,155.35,3.2189]
[1729091926005,18.55,155.39,155.33,1.375]
[1729091926205,3.2188,155.36,155.34,3.219]
[1729091926603,18.55,155.39,155.33,1.375]
[1729091926807,18.55,155.39,155.33,4.5944]
[1729091927007,18.55,155.38,155.33,1.375]
[1729091927207,3.219,155.35,155.33,4.5944]
[1729091927710,3.219,155.35,155.33,3.2194]
[1729091928213,3.2192,155.34,155.32,3.2195]
[1729091928402,18.55,155.38,155.32,6.37322077]
[1729091928909,3.2191,155.35,155.33,3.2194]
[1729091930112,3.2193,155.34,155.31,3.2196]
[1729091930811,3.2193,155.34,155.31,6.36495119]
[1729091931409,3.2193,155.34,155.32,3.2195]
[1729091931804,6.831,155.39,155.33,3.15111026]
[1729091932106,6.831,155.39,155.34,3.219]
[1729091932310,5.46,155.42,155.32,24.01]
[1729091932605,5.46,155.42,155.34,18.55]
[1729091932809,5.46,155.42,155.35,1.3217]
[1729091933008,3.2179,155.41,155.38,3.2182]
[1729091933612,3.218,155.4,155.38,3.2182]
[1729091937911,3.218,155.4,155.37,6.39794353]
[1729091938209,3.218,155.4,155.35,1.3217]
[1729091938813,3.218,155.4,155.36,3.2187]
[1729091939013,6.6998,155.45,155.36,18.55]
[1729091939510,3.2176,155.42,155.39,3.2181]
[1729091939717,25.2498,155.45,155.39,6.47367439]
[1729091939917,25.2498,155.45,155.39,3.25557439]
[1729091940119,3.2177,155.41,155.38,3.2182]
[1729091940323,3.2177,155.41,155.39,3.14324662]
[1729091940625,3.2177,155.41,155.36,23.87]
[1729091940823,75.9305,155.54,155.38,18.55]
[1729091941026,18.55,155.5,155.4,18.55]
[1729091941222,5.32,155.49,155.41,5.32]
[1729091941522,3.2164,155.48,155.45,3.2168]
[1729091942321,3.2165,155.47,155.44,3.217]
[1729091943029,18.55,155.48,155.42,1.3983]
[1729091943725,3.2169,155.46,155.43,3.2173]
[1729091944029,5.32,155.49,155.42,1.3983]
[1729091944233,3.2169,155.46,155.42,4.6156]
[1729091944529,5.32,155.49,155.42,1.3983]
[1729091944930,3.2167,155.46,155.42,1.3983]
[1729091945122,5.32,155.49,155.42,1.3983]
[1729091945630,3.2166,155.47,155.44,3.217]
[1729091946830,18.55,155.48,155.42,1.3983]
[1729091947028,6.4305,155.54,155.42,1.3983]
[1729091947225,18.55,155.53,155.43,18.55]
[1729091947423,3.2163,155.48,155.45,3.2168]
[1729091947621,3.2163,155.48,155.45,8.5368]
[1729091948930,18.55,155.49,155.42,6.7183]
[1729091949129,18.55,155.47,155.42,6.7183]
[1729091949430,3.2172,155.44,155.42,6.7183]
[1729091950126,3.2173,155.43,155.4,3.2178]
[1729091950331,18.55,155.45,155.4,3.2178]
[1729091950733,3.2175,155.42,155.4,6.37291185]
[1729091950928,18.55,155.45,155.37,2.7644]
[1729091951135,18.55,155.43,155.38,5.32]
[1729091951331,3.2181,155.39,155.38,5.32]
[1729091951635,18.55,155.43,155.38,8.49538023]
[1729091952631,18.55,155.47,155.38,8.49538023]
[1729091953231,3.2175,155.43,155.38,27.04538023]
[1729091953633,3.2175,155.43,155.39,3.218]
[1729091953841,3.2175,155.43,155.38,27.04538023]
[1729091954938,3.2175,155.43,155.4,3.2178]
[1729091955638,5.32,155.48,155.38,11.71358023]
[1729091955639,3.2179,155.4,155.38,11.71358023]
[1729091956239,3.2179,155.4,155.38,8.49538023]
[1729091957239,3.2179,155.4,155.38,11.71368023]
[1729091958042,3.2179,155.4,155.38,6.39368023]
[1729091960240,3.2179,155.4,155.38,3.17538023]
[1729091960642,3.2181,155.39,155.38,3.17538023]
[1729091960839,18.55,155.4,155.32,19.9331]
[1729091961038,18.55,155.38,155.31,6.6441]
[1729091961242,3.2194,155.33,155.31,6.6441]
[1729091961741,3.2194,155.33,155.31,4.55608474]
[1729091962050,3.2196,155.32,155.29,8.5401]
[1729091962547,3.2199,155.31,155.3,3.16182915]
[1729091962732,3.2199,155.31,155.29,5.32]
[1729091963135,3.2199,155.31,155.29,8.54762472]
[1729091963942,3.22,155.3,155.29,8.54762472]
[1729091964143,18.55,155.32,155.27,1.324]
[1729091964547,18.55,155.34,155.27,4.61312475]
[1729091964738,18.55,155.34,155.27,1.324]
[1729091965048,18.55,155.36,155.27,1.324]
[1729091965247,18.55,155.36,155.3,3.2198]
[1729091965654,3.2196,155.33,155.29,8.5401]
[1729091967952,3.2196,155.33,155.3,3.22]
[1729091968147,18.55,155.36,155.29,5.32]
[1729091968846,3.2194,155.33,155.3,3.2199]
[1729091969151,18.55,155.36,155.29,5.32]
[1729091969345,18.55,155.36,155.32,3.2194]
[1729091970042,3.2191,155.35,155.32,3.2194]
[1729091970749,5.3,155.4,155.31,18.55]
[1729091971149,3.2183,155.39,155.35,3.2188]
[1729091971349,3.2183,155.39,155.36,3.25457471]
[1729091971550,3.2183,155.39,155.33,5.3]
[1729091971851,3.2183,155.39,155.34,1.3791]
[1729091972651,3.2183,155.39,155.36,3.2188]
[1729091972851,3.2186,155.37,155.35,3.19726793]
[1729091975247,3.2178,155.41,155.35,3.20823839]
[1729091975442,1.3997,155.43,155.34,19.9291]
[1729091975754,3.2181,155.4,155.37,3.2184]
[1729091976049,18.55,155.42,155.34,1.3791]
[1729091976754,3.2185,155.38,155.35,3.2189]
[1729091976954,18.55,155.41,155.36,3.15451802]
[1729091977160,18.55,155.41,155.34,6.6791]
[1729091977347,3.2187,155.37,155.34,9.8982]
[1729091977550,18.55,155.41,155.34,6.6791]
[1729091977748,3.2187,155.37,155.35,3.17608022]
[1729091977944,1.3997,155.43,155.34,9.8982]